lending/lending_fUSD_20240509
["ID","MTS","AMOUNT","RATE_DAILY","PERIOD"]
[326684398,1715220659372,-500.0,0.00027397,2]
[326684399,1715220659382,-500.0,0.00027397,2]
[326684400,1715220659392,-984.83,0.00027397,2]
[326684401,1715220659403,-1354.69,0.00027397,2]
[326684402,1715220659413,-698.08,0.00027397,2]
[326684403,1715220659423,-1043.22,0.00027397,2]
[326684404,1715220659433,-1198.89,0.00027397,2]
[326684405,1715220659443,-500.0,0.00027397,2]
[326684406,1715220659453,-611.69,0.00027397,2]
[326684407,1715220659464,-561.06,0.00027397,2]
[326684408,1715220659474,-500.0,0.00027397,2]
[326684409,1715220659484,-532.63462645,0.00027397,2]
[326684410,1715220659504,-1063.24537355,0.00027397,2]
[326684411,1715220659514,-500.0,0.00027397,2]
[326684412,1715220659525,-500.0,0.00027397,2]
[326684413,1715220659535,-663.46,0.00027397,2]
[326684414,1715220659545,-368.19462648,0.00027397,2]
[326684415,1715220659557,-131.80537352,0.00027397,2]
[326684416,1715220659567,-500.0,0.00027397,2]
[326684417,1715220659577,-500.0,0.00027397,2]
[326684418,1715220659599,-500.0,0.00027397,2]
[326684419,1715220659631,-500.0,0.00027397,2]
[326684420,1715220659641,-500.0,0.00027397,2]
[326684421,1715220659651,-466.08189439,0.00027397,2]
[326684422,1715220659666,-33.91810561,0.00027397,2]
[326684423,1715220659676,-1142.5,0.00027397,2]
[326684424,1715220659686,-500.0,0.00027397,2]
[326684425,1715220659697,-522.50304915,0.00027397,2]
[326684426,1715220659707,-399.55201159,0.00027397,2]
[326684433,1715221835855,-159.39518885,0.000119,2]
[326684435,1715221835866,-3057.04594187,0.00011999,2]
[326684437,1715221835877,-5076.06976055,0.00012,2]
[326684439,1715221835891,-1000.0,0.00012,2]
[326684441,1715221835901,-4214.08453482,0.00015,2]
[326684443,1715221835911,-1050.0,0.00018,3]
[326684444,1715221835921,-185.02,0.00019178,2]
[326684445,1715221835931,-156.05,0.00019178,2]
[326684446,1715221835941,-303.0,0.00019452,2]
[326684447,1715221835950,-8849.32,0.00019452,2]
[326684448,1715221835960,-155.0,0.00020544,2]
[326684449,1715221835970,-365.88429841,0.00020545,2]
[326684450,1715221835979,-299.99,0.00020546,7]
[326684451,1715221835989,-499.99,0.00020546,2]
[326684452,1715221836000,-150.99,0.00020546,2]
[326684453,1715221836010,-839.0,0.000213,3]
[326684454,1715221836020,-152.77499496,0.00023396,2]
[326684455,1715221836030,-157.92529718,0.0002342,2]
[326684456,1715221836040,-4260.70271543,0.00023746,2]
[326684457,1715221836052,-4100.0,0.00023746,2]
[326684458,1715221836065,-728.92117432,0.00023746,2]
[326684459,1715221836077,-836.74867698,0.00023746,2]
[326684460,1715221836089,-500.05224,0.00023746,2]
[326684461,1715221836103,-13463.57519327,0.00023746,2]
[326684462,1715221836113,-191.55,0.00023926,2]
[326684463,1715221836122,-19609.38018864,0.00024,2]
[326684464,1715221836133,-250.0,0.00024364,2]
[326684465,1715221836143,-250.0,0.00024445,2]
[326684466,1715221836156,-166.7692,0.000249,2]
[326684467,1715221836167,-152.77499496,0.00025236,2]
[326684468,1715221836176,-185.02,0.00025379,2]
[326684469,1715221836186,-1866.0,0.00025403,2]
[326684470,1715221836197,-199.51,0.00025623,2]
[326684471,1715221836207,-180.0,0.0002563,2]
[326684472,1715221836216,-298.07,0.00025728,2]
[326684473,1715221836226,-155.03868011,0.00026138,2]
[326684474,1715221836238,-9977.21,0.00026141,2]
[326684475,1715221836248,-156.14908094,0.00026393,2]
[326684476,1715221836257,-252.02181648,0.00027121,2]
[326684477,1715221836267,-1580.51332016,0.00027133,2]
[326684478,1715221836276,-2500.0,0.00027196,2]
[326684479,1715221836286,-1000.0,0.00027197,2]
[326684480,1715221836296,-22532.2509,0.00027197,2]
[326684481,1715221836306,-1556.20191598,0.00027197,2]
[326684482,1715221836315,-176.248,0.00027222,2]
[326684483,1715221836324,-80042.28614716,0.00027296,2]
[326684484,1715221836334,-10000.0,0.00027297,2]
[326684485,1715221836344,-152.66,0.00027387,2]
[326684486,1715221836354,-181.76,0.00027387,2]
[326684487,1715221836364,-3532.61653205,0.00027387,2]
[326684488,1715221836373,-157.15302067,0.00027395,2]
[326684489,1715221836383,-431.68297217,0.00027395,2]
[326684490,1715221836393,-155.74584434,0.00027395,2]
[326684491,1715221836402,-929.07157535,0.00027395,2]
[326684492,1715221836414,-417.18588247,0.00027395,2]
[326684493,1715221836426,-1284.22658785,0.00027395,2]
[326684494,1715221836436,-603.87018783,0.00027395,2]
[326684495,1715221836445,-295.19688457,0.00027395,2]
[326684496,1715221836455,-2446.17,0.00027396,2]
[326684497,1715221836465,-9754.0,0.00027397,2]
[326684498,1715221836475,-155.0,0.00027397,2]
[326684499,1715221836485,-2215.61166505,0.00027397,2]
[326684500,1715221836496,-293.7485134,0.00027397,2]
[326684501,1715221836506,-1042.23614951,0.00027397,2]
[326684502,1715221836515,-508.86148333,0.00027397,2]
[326684503,1715221836525,-525.5761964,0.00027397,2]
[326684504,1715221836534,-511.96971593,0.00027397,2]
[326684505,1715221836544,-522.77379474,0.00027397,2]
[326684506,1715221836554,-519.19268416,0.00027397,2]
[326684507,1715221836563,-509.02051161,0.00027397,2]
[326684508,1715221836573,-500.0,0.00027397,2]
[326684509,1715221836582,-520.73065477,0.00027397,2]
[326684510,1715221836592,-513.31811969,0.00027397,2]
[326684511,1715221836601,-500.0,0.00027397,2]
[326684512,1715221836611,-514.74955861,0.00027397,2]
[326684513,1715221836620,-522.63317098,0.00027397,2]
[326684514,1715221836630,-500.0,0.00027397,2]
[326684515,1715221836639,-519.16059938,0.00027397,2]
[326684516,1715221836648,-513.39521483,0.00027397,2]
[326684517,1715221836658,-515.49046857,0.00027397,2]
[326684518,1715221836667,-500.0,0.00027397,2]
[326684519,1715221836677,-514.44067316,0.00027397,2]
[326684520,1715221836687,-515.28218696,0.00027397,2]
[326684521,1715221836696,-500.0,0.00027397,2]
[326684522,1715221836706,-511.8403839,0.00027397,2]
[326684523,1715221836716,-511.76786166,0.00027397,2]
[326684524,1715221836726,-500.0,0.00027397,2]
[326684525,1715221836736,-513.19272594,0.00027397,2]
[326684526,1715221836748,-508.97769804,0.00027397,2]
[326684527,1715221836758,-500.0,0.00027397,2]
[326684528,1715221836767,-526.72756933,0.00027397,2]
[326684529,1715221836777,-517.36979433,0.00027397,2]
[326684530,1715221836787,-500.0,0.00027397,2]
[326684531,1715221836797,-524.11700093,0.00027397,2]
[326684532,1715221836806,-508.03039047,0.00027397,2]
[326684533,1715221836816,-500.0,0.00027397,2]
[326684534,1715221836825,-500.0,0.00027397,2]
[326684535,1715221836835,-500.0,0.00027397,2]
[326684536,1715221836845,-459.35697069,0.00027397,2]
[326684537,1715221836854,-500.0,0.00027397,2]
[326684538,1715221836864,-360.65991512,0.00027397,2]
[326684539,1715221836876,-514.02330458,0.00027397,2]
[326684540,1715221836886,-514.21148822,0.00027397,2]
[326684541,1715221836896,-1204.77,0.00027397,2]
[326684542,1715221836906,-511.91782459,0.00027397,2]
[326684543,1715221836915,-500.0,0.00027397,2]
[326684544,1715221836925,-526.74710642,0.00027397,2]
[326684545,1715221836935,-500.0,0.00027397,2]
[326684546,1715221836944,-513.32970593,0.00027397,2]
[326684547,1715221836953,-500.0,0.00027397,2]
[326684548,1715221836963,-500.0,0.00027397,2]
[326684549,1715221836972,-500.0,0.00027397,2]
[326684550,1715221836982,-511.04731903,0.00027397,2]
[326684551,1715221836991,-540.2868148,0.00027397,2]
[326684552,1715221837002,-500.0,0.00027397,2]
[326684553,1715221837012,-509.30976539,0.00027397,2]
[326684554,1715221837022,-500.0,0.00027397,2]
[326684555,1715221837032,-564.29,0.00027397,2]
[326684556,1715221837041,-556.20543739,0.00027397,2]
[326684557,1715221837051,-524.15595414,0.00027397,2]
[326684558,1715221837061,-441.42307312,0.00027397,2]
[326684559,1715221837070,-500.0,0.00027397,2]
[326684560,1715221837080,-500.0,0.00027397,2]
[326684561,1715221837090,-517.02632832,0.00027397,2]
[326684562,1715221837101,-525.73,0.00027397,2]
[326684563,1715221837111,-513.93190863,0.00027397,2]
[326684564,1715221837120,-518.47508157,0.00027397,2]
[326684565,1715221837129,-667.75,0.00027397,2]
[326684566,1715221837139,-285.54602594,0.00027397,2]
[326684567,1715221837149,-511.67948498,0.00027397,2]
[326684568,1715221837161,-450.0,0.00027397,2]
[326684569,1715221837171,-542.39485543,0.00027397,2]
[326684570,1715221837180,-523.72299901,0.00027397,2]
[326684571,1715221837190,-500.0,0.00027397,2]
[326684572,1715221837201,-500.0,0.00027397,2]
[326684573,1715221837210,-510.8836606,0.00027397,2]
[326684574,1715221837219,-500.0,0.00027397,2]
[326684575,1715221837229,-510.18470028,0.00027397,2]
[326684576,1715221837242,-592.91337227,0.00027397,2]
[326684577,1715221837252,-894.92,0.00027397,2]
[326684578,1715221837262,-500.0,0.00027397,2]
[326684579,1715221837272,-597.61,0.00027397,2]
[326684580,1715221837282,-500.0,0.00027397,2]
[326684581,1715221837291,-525.65610047,0.00027397,2]
[326684582,1715221837301,-830.54,0.00027397,2]
[326684583,1715221837311,-500.0,0.00027397,2]
[326684584,1715221837320,-500.0,0.00027397,2]
[326684585,1715221837329,-500.0,0.00027397,2]
[326684586,1715221837339,-500.0,0.00027397,2]
[326684587,1715221837349,-500.0,0.00027397,2]
[326684588,1715221837359,-1016.54,0.00027397,2]
[326684589,1715221837369,-500.0,0.00027397,2]
[326684590,1715221837378,-500.0,0.00027397,2]
[326684591,1715221837388,-490.0,0.00027397,2]
[326684592,1715221837398,-1279.22,0.00027397,2]
[326684593,1715221837408,-500.0,0.00027397,2]
[326684594,1715221837417,-519.86834372,0.00027397,2]
[326684595,1715221837427,-500.0,0.00027397,2]
[326684596,1715221837437,-500.0,0.00027397,2]
[326684597,1715221837447,-522.95741769,0.00027397,2]
[326684598,1715221837457,-862.44,0.00027397,2]
[326684599,1715221837466,-500.0,0.00027397,2]
[326684600,1715221837477,-530.06736288,0.00027397,2]
[326684601,1715221837487,-500.0,0.00027397,2]
[326684602,1715221837497,-500.0,0.00027397,2]
[326684603,1715221837506,-547.57798841,0.00027397,2]
[326684604,1715221837516,-500.0,0.00027397,2]
[326684605,1715221837525,-500.0,0.00027397,2]
[326684606,1715221837535,-490.0,0.00027397,2]
[326684607,1715221837544,-500.0,0.00027397,2]
[326684608,1715221837554,-500.0,0.00027397,2]
[326684609,1715221837564,-507.85947835,0.00027397,2]
[326684610,1715221837574,-500.0,0.00027397,2]
[326684611,1715221837584,-514.42792839,0.00027397,2]
[326684612,1715221837594,-500.0,0.00027397,2]
[326684613,1715221837603,-500.0,0.00027397,2]
[326684614,1715221837613,-500.0,0.00027397,2]
[326684615,1715221837623,-500.0,0.00027397,2]
[326684616,1715221837633,-500.0,0.00027397,2]
[326684617,1715221837642,-528.50046935,0.00027397,2]
[326684618,1715221837652,-500.0,0.00027397,2]
[326684619,1715221837661,-500.0,0.00027397,2]
[326684620,1715221837671,-500.0,0.00027397,2]
[326684621,1715221837680,-500.0,0.00027397,2]
[326684622,1715221837690,-785.56,0.00027397,2]
[326684623,1715221837700,-500.0,0.00027397,2]
[326684624,1715221837710,-500.0,0.00027397,2]
[326684625,1715221837719,-512.13433325,0.00027397,2]
[326684626,1715221837729,-500.0,0.00027397,2]
[326684627,1715221837739,-596.35,0.00027397,2]
[326684628,1715221837748,-500.0,0.00027397,2]
[326684629,1715221837756,-991.29,0.00027397,2]
[326684630,1715221837767,-750.02,0.00027397,2]
[326684631,1715221837777,-512.34467439,0.00027397,2]
[326684632,1715221837786,-581.91294381,0.00027397,2]
[326684633,1715221837796,-188.54771214,0.00027397,2]
[326684634,1715221837806,-500.0,0.00027397,2]
[326684635,1715221837815,-500.0,0.00027397,2]
[326684636,1715221837824,-500.0,0.00027397,2]
[326684637,1715221837834,-500.0,0.00027397,2]
[326684638,1715221837844,-525.51347755,0.00027397,2]
[326684639,1715221837854,-500.0,0.00027397,2]
[326684640,1715221837863,-500.0,0.00027397,2]
[326684641,1715221837873,-740.65,0.00027397,2]
[326684642,1715221837882,-757.66,0.00027397,2]
[326684643,1715221837892,-500.0,0.00027397,2]
[326684644,1715221837901,-509.87983898,0.00027397,2]
[326684645,1715221837911,-500.0,0.00027397,2]
[326684646,1715221837921,-662.25,0.00027397,2]
[326684647,1715221837933,-500.0,0.00027397,2]
[326684648,1715221837943,-511.55,0.00027397,2]
[326684649,1715221837952,-500.0,0.00027397,2]
[326684650,1715221837962,-727.61,0.00027397,2]
[326684651,1715221837971,-946.4,0.00027397,2]
[326684652,1715221837980,-500.0,0.00027397,2]
[326684653,1715221837990,-825.47,0.00027397,2]
[326684654,1715221837999,-2285.17,0.00027397,2]
[326684655,1715221838009,-500.0,0.00027397,2]
[326684656,1715221838018,-500.0,0.00027397,2]
[326684657,1715221838027,-713.35,0.00027397,2]
[326684658,1715221838037,-1140.74,0.00027397,2]
[326684659,1715221838048,-500.0,0.00027397,2]
[326684660,1715221838058,-500.0,0.00027397,2]
[326684661,1715221838067,-4479.94,0.00027397,2]
[326684662,1715221838077,-500.0,0.00027397,2]
[326684663,1715221838087,-7616.12,0.00027397,2]
[326684664,1715221838097,-500.0,0.00027397,2]
[326684665,1715221838108,-500.0,0.00027397,2]
[326684666,1715221838118,-1360.89,0.00027397,2]
[326684667,1715221838127,-500.0,0.00027397,2]
[326684668,1715221838137,-492.43332519,0.00027397,2]
[326684669,1715221838147,-500.0,0.00027397,2]
[326684670,1715221838160,-562.89712676,0.00027397,2]
[326684671,1715221838169,-607.42,0.00027397,2]
[326684672,1715221838179,-775.4,0.00027397,2]
[326684673,1715221838189,-500.0,0.00027397,2]
[326684674,1715221838198,-500.0,0.00027397,2]
[326684675,1715221838208,-3000.0,0.00027397,2]
[326684676,1715221838217,-500.0,0.00027397,2]
[326684677,1715221838228,-500.0,0.00027397,2]
[326684678,1715221838239,-1119.13,0.00027397,2]
[326684679,1715221838249,-500.0,0.00027397,2]
[326684680,1715221838258,-749.67,0.00027397,2]
[326684681,1715221838267,-1090.3,0.00027397,2]
[326684682,1715221838276,-1606.21,0.00027397,2]
[326684683,1715221838286,-360.38740362,0.00027397,2]
[326684684,1715221838296,-716.53,0.00027397,2]
[326684685,1715221838305,-500.0,0.00027397,2]
[326684686,1715221838315,-774.34,0.00027397,2]
[326684687,1715221838324,-500.0,0.00027397,2]
[326684688,1715221838334,-643.59,0.00027397,2]
[326684689,1715221838343,-536.3812969,0.00027397,2]
[326684690,1715221838353,-500.0,0.00027397,2]
[326684691,1715221838363,-500.0,0.00027397,2]
[326684692,1715221838372,-509.1133072,0.00027397,2]
[326684693,1715221838382,-500.0,0.00027397,2]
[326684694,1715221838391,-512.59922353,0.00027397,2]
[326684695,1715221838400,-1208.08,0.00027397,2]
[326684696,1715221838409,-791.75,0.00027397,2]
[326684697,1715221838419,-667.85,0.00027397,2]
[326684698,1715221838427,-767.0,0.00027397,2]
[326684699,1715221838436,-500.0,0.00027397,2]
[326684700,1715221838445,-500.0,0.00027397,2]
[326684701,1715221838454,-500.0,0.00027397,2]
[326684702,1715221838465,-562.61672327,0.00027397,2]
[326684703,1715221838475,-7434.33,0.00027397,2]
[326684704,1715221838484,-500.0,0.00027397,2]
[326684705,1715221838495,-500.0,0.00027397,2]
[326684706,1715221838504,-500.0,0.00027397,2]
[326684707,1715221838514,-500.0,0.00027397,2]
[326684708,1715221838523,-615.28835283,0.00027397,2]
[326684709,1715221838533,-500.0,0.00027397,2]
[326684710,1715221838543,-660.66,0.00027397,2]
[326684711,1715221838553,-681.06,0.00027397,2]
[326684712,1715221838562,-500.0,0.00027397,2]
[326684713,1715221838572,-1202.69,0.00027397,2]
[326684714,1715221838581,-500.0,0.00027397,2]
[326684715,1715221838591,-500.0,0.00027397,2]
[326684716,1715221838600,-519.72692382,0.00027397,2]
[326684717,1715221838609,-500.0,0.00027397,2]
[326684718,1715221838619,-500.0,0.00027397,2]
[326684719,1715221838628,-510.4826027,0.00027397,2]
[326684720,1715221838638,-672.34,0.00027397,2]
[326684721,1715221838647,-523.73321786,0.00027397,2]
[326684722,1715221838657,-770.69,0.00027397,2]
[326684723,1715221838837,-532.58080194,0.00027397,2]
[326684724,1715221838847,-531.49684484,0.00027397,2]
[326684725,1715221838857,-529.68354907,0.00027397,2]
[326684726,1715221838866,-1508.38,0.00027397,2]
[326684727,1715221838876,-150.0,0.00027397,2]
[326684728,1715221838886,-156.05,0.00027593,2]
[326684729,1715221838895,-152.77499497,0.00027599,2]
[326684730,1715221838905,-329.81969822,0.00027843,2]
[326684731,1715221838915,-1000.0,0.00027843,2]
[326684732,1715221838927,-175.78481673,0.00027845,2]
[326684733,1715221838937,-200.0,0.000279,10]
[326684734,1715221838947,-152.66,0.00027933,2]
[326684735,1715221838956,-500.0,0.00027942,2]
[326684736,1715221838966,-578.64818085,0.00027942,2]
[326684737,1715221838977,-2054.95,0.00027942,5]
[326684738,1715221838987,-1042.76,0.00027942,5]
[326684739,1715221838998,-500.0,0.00027942,5]
[326684740,1715221839007,-1640.24,0.00027942,5]
[326684741,1715221839018,-1072.78,0.00027942,5]
[326684742,1715221839028,-982.13,0.00027942,5]
[326684743,1715221839038,-718.27,0.00027942,5]
[326684744,1715221839048,-629.15580701,0.00027942,5]
[326684745,1715221839059,-728.04,0.00027942,5]
[326684746,1715221839069,-2446.17,0.00027942,2]
[326684747,1715221839080,-500.0,0.00027942,5]
[326684748,1715221839090,-535.32,0.00027942,5]
[326684749,1715221839101,-626.03,0.00027942,5]
[326684750,1715221839112,-500.0,0.00027942,5]
[326684751,1715221839122,-8484.4,0.00027942,5]
[326684752,1715221839133,-561.5,0.00027942,5]
[326684753,1715221839144,-510.76059668,0.00027942,5]
[326684754,1715221839159,-511.66434513,0.00027942,5]
[326684755,1715221839169,-546.51781985,0.00027942,5]
[326684756,1715221839179,-500.0,0.00027943,5]
[326684757,1715221839190,-846.72,0.00027943,5]
[326684758,1715221839200,-500.0,0.00027943,5]
[326684759,1715221839210,-519.72007283,0.00027943,5]
[326684760,1715221839220,-534.843597,0.00027943,5]
[326684761,1715221839230,-500.0,0.00027943,5]
[326684762,1715221839243,-583.84986268,0.00027943,5]
[326684763,1715221839254,-500.0,0.00027943,5]
[326684764,1715221839265,-500.0,0.00027943,5]
[326684765,1715221839276,-500.0,0.00027943,5]
[326684766,1715221839287,-500.0,0.00027943,5]
[326684767,1715221839298,-979.38,0.00027943,5]
[326684768,1715221839308,-500.0,0.00027943,5]
[326684769,1715221839319,-500.0,0.00027943,5]
[326684770,1715221839329,-494.03077756,0.00027943,5]
[326684771,1715221839340,-540.98522579,0.00027943,5]
[326684772,1715221839350,-535.89110672,0.00027943,5]
[326684773,1715221839360,-845.63,0.00027943,5]
[326684774,1715221839370,-500.0,0.00027943,5]
[326684775,1715221839380,-500.0,0.00027943,5]
[326684776,1715221839390,-500.0,0.00027943,5]
[326684777,1715221839400,-725.29,0.00027943,5]
[326684778,1715221839410,-500.0,0.00027943,5]
[326684779,1715221839419,-623.09,0.00027943,5]
[326684780,1715221839430,-500.0,0.00027943,5]
[326684781,1715221839440,-510.34372436,0.00027943,5]
[326684782,1715221839450,-500.0,0.00027943,5]
[326684783,1715221839460,-500.0,0.00027943,5]
[326684784,1715221839473,-532.10694033,0.00027943,5]
[326684785,1715221839483,-500.0,0.00027943,5]
[326684786,1715221839495,-515.11,0.00027943,5]
[326684787,1715221839504,-507.67565426,0.00027943,5]
[326684788,1715221839514,-500.0,0.00027943,5]
[326684789,1715221839524,-843.98,0.00027943,5]
[326684790,1715221839534,-920.85,0.00027943,5]
[326684791,1715221839544,-543.19926112,0.00027943,5]
[326684792,1715221839554,-500.0,0.00027943,5]
[326684793,1715221839564,-500.0,0.00027943,5]
[326684794,1715221839574,-509.78763664,0.00027943,5]
[326684795,1715221839584,-500.0,0.00027943,5]
[326684796,1715221839594,-177.29,0.00027943,5]
[326684797,1715221839605,-500.0,0.00027943,5]
[326684798,1715221839615,-2999.09,0.00027943,5]
[326684799,1715221839625,-613.27,0.00027943,5]
[326684800,1715221839635,-730.81,0.00027943,5]
[326684801,1715221839645,-500.0,0.00027943,5]
[326684802,1715221839656,-500.0,0.00027943,5]
[326684803,1715221839666,-500.0,0.00027943,5]
[326684804,1715221839676,-556.93,0.00027943,5]
[326684805,1715221839686,-500.0,0.00027943,5]
[326684806,1715221839696,-698.08,0.00027943,5]
[326684807,1715221839707,-576.59,0.00027943,5]
[326684808,1715221839716,-314.20285599,0.00027943,5]
[326684809,1715221839726,-512.205097,0.00027943,5]
[326684810,1715221839736,-611.69,0.00027943,5]
[326684811,1715221839746,-558.82333114,0.00027943,5]
[326684812,1715221839756,-500.0,0.00027943,5]
[326684813,1715221839766,-518.94,0.00027943,5]
[326684814,1715221839779,-541.95709601,0.00027943,5]
[326684816,1715221839804,-628.48,0.00027943,5]
[326684818,1715221839817,-500.0,0.00027943,5]
[326684820,1715221839828,-544.95,0.00027943,5]
[326684822,1715221839840,-170.73452979,0.00027943,5]
[326684824,1715221839850,-500.0,0.00027943,5]
[326684826,1715221839861,-687.78,0.00027943,5]
[326684827,1715221839872,-567.39684848,0.00027943,5]
[326684828,1715221839882,-500.0,0.00027943,5]
[326684829,1715221839893,-585.37,0.00027943,5]
[326684830,1715221839903,-517.50050286,0.00027943,5]
[326684831,1715221839914,-500.0,0.00027943,5]
[326684832,1715221839924,-500.0,0.00027943,5]
[326684833,1715221839934,-1452.91,0.00027943,5]
[326684834,1715221839944,-500.0,0.00027943,5]
[326684835,1715221839954,-1176.0,0.00027943,5]
[326684836,1715221839963,-618.30101231,0.00027943,5]
[326684837,1715221839973,-778.73185543,0.00027943,5]
[326684838,1715221840997,-304.36814457,0.00027943,5]
[326684839,1715221841008,-195.63185543,0.00027943,5]
[326684840,1715221841296,-511.34363397,0.00027943,5]
[326684841,1715221841309,-271.2999999,0.00027943,5]
[326684880,1715221842860,-182.90111073,0.00027935,2]
[326684881,1715221842870,-500.0,0.00027942,5]
[326684882,1715221842879,-1544.3745107,0.00027943,5]
[326684883,1715221842888,-500.0,0.00027943,5]
[326684884,1715221842897,-500.0,0.00027943,5]
[326684885,1715221842906,-503.46,0.00027943,5]
[326684886,1715221842915,-500.0,0.00027943,5]
[326684887,1715221842929,-500.0,0.00027943,5]
[326684888,1715221842939,-2462.38,0.00027943,5]
[326684889,1715221842948,-500.0,0.00027943,5]
[326684890,1715221842958,-500.0,0.00027943,5]
[326684891,1715221842970,-1218.48,0.00027943,5]
[326684892,1715221842979,-1458.52,0.00027943,5]
[326684893,1715221842988,-500.0,0.00027943,5]
[326684894,1715221842998,-613.49,0.00027943,5]
[326684895,1715221843007,-759.2,0.00027943,5]
[326684896,1715221843016,-500.43416902,0.00027943,2]
[326684897,1715221843026,-500.0,0.00027943,5]
[326684898,1715221843035,-500.0,0.00027943,5]
[326684899,1715221843044,-504.44289326,0.00027943,5]
[326684900,1715221843054,-504.76775089,0.00027943,5]
[326684901,1715221843063,-1708.38,0.00027943,5]
[326684902,1715221843073,-526.1,0.00027943,5]
[326684903,1715221843082,-811.47,0.00027943,5]
[326684904,1715221843091,-520.43174732,0.00027943,5]
[326684905,1715221843104,-500.0,0.00027943,5]
[326684906,1715221843114,-500.0,0.00027943,5]
[326684907,1715221843123,-508.43707627,0.00027944,5]
[326684908,1715221843132,-500.0,0.00027944,5]
[326684909,1715221843142,-500.0,0.00027944,5]
[326684910,1715221843154,-508.71013691,0.00027944,5]
[326684911,1715221843163,-500.0,0.00027944,5]
[326684912,1715221843173,-512.2748905,0.00027944,5]
[326684913,1715221843183,-500.0,0.00027944,5]
[326684914,1715221843192,-599.3,0.00027944,5]
[326684915,1715221843202,-605.28080458,0.00027944,5]
[326684916,1715221843211,-508.96109453,0.00027944,5]
[326684917,1715221843220,-510.14629646,0.00027944,5]
[326684918,1715221843230,-514.94300815,0.00027944,5]
[326684919,1715221843240,-511.65804486,0.00027944,5]
[326684920,1715221843251,-511.92644004,0.00027944,5]
[326684921,1715221843260,-500.0,0.00027944,5]
[326684922,1715221843269,-500.0,0.00027944,5]
[326684923,1715221843279,-509.95287791,0.00027944,5]
[326684924,1715221843288,-511.56827208,0.00027944,5]
[326684925,1715221843297,-588.39315787,0.00027944,5]
[326684926,1715221843307,-500.0,0.00027944,5]
[326684927,1715221843316,-543.84252206,0.00027944,5]
[326684928,1715221843325,-523.12850844,0.00027944,5]
[326684929,1715221843335,-510.04666103,0.00027944,5]
[326684930,1715221843344,-511.22321158,0.00027944,5]
[326684931,1715221843353,-500.0,0.00027944,5]
[326684932,1715221843363,-500.0,0.00027944,5]
[326684933,1715221843372,-500.0,0.00027944,5]
[326684934,1715221843381,-265.07778825,0.00027944,5]
[326684935,1715221843391,-500.0,0.00027944,5]
[326684936,1715221843400,-510.32050552,0.00027944,5]
[326684937,1715221843410,-500.0,0.00027944,5]
[326684938,1715221843419,-513.51696633,0.00027944,5]
[326684939,1715221843428,-511.19155919,0.00027944,5]
[326684940,1715221843604,-521.37915712,0.00027944,5]
[326684941,1715221843614,-232.6099593,0.00027944,5]
[326684942,1715221843624,-511.00932227,0.00027944,5]
[326684943,1715221843633,-515.27114191,0.00027944,5]
[326684944,1715221843643,-420.87321841,0.00027944,5]
[326684945,1715221843652,-517.39298568,0.00027944,5]
[326684946,1715221843661,-514.83341611,0.00027944,5]
[326684947,1715221843670,-500.0,0.00027944,5]
[326684948,1715221843679,-509.60164584,0.00027944,5]
[326684949,1715221843689,-511.53189769,0.00027944,5]
[326684950,1715221843704,-512.56104946,0.00027944,5]
[326684951,1715221843715,-429.5086757,0.00027944,5]
[326684952,1715221843724,-333.50830402,0.00027944,5]